fUSD/lending_fUSD_20240121
["ID","MTS","AMOUNT","RATE_DAILY","PERIOD"]
[312411940,1705863073409,-953.43125265,0.00041289,30]
[312411941,1705863073419,-364.73162279,0.00041303,14]
[312411942,1705863073428,-181.63371409,0.00041303,14]
[312411943,1705863073438,-248.61643646,0.00041303,14]
[312411944,1705863073449,-276.18212841,0.00041303,14]
[312411945,1705863073459,-218.49632604,0.00041303,14]
[312411946,1705863073468,-294.51,0.0004132,2]
[312411947,1705863073477,-219.64,0.0004132,2]
[312411948,1705863073487,-408.81,0.0004132,2]
[312411949,1705863073496,-150.0,0.0004132,2]
[312411950,1705863073506,-292.03,0.0004132,2]
[312411951,1705863073515,-150.0,0.0004132,2]
[312411952,1705863073525,-300.0,0.0004132,2]
[312411953,1705863073534,-305.61,0.0004132,2]
[312411954,1705863073544,-418.68,0.0004132,2]
[312411955,1705863073553,-150.0,0.0004132,2]
[312411956,1705863073563,-150.0,0.0004132,2]
[312411957,1705863073572,-418.68,0.0004132,2]
[312411958,1705863073582,-294.51,0.0004132,2]
[312411959,1705863073591,-408.81,0.0004132,2]
[312411960,1705863073601,-150.0,0.0004132,2]
[312411961,1705863073610,-292.03,0.0004132,2]
[312411962,1705863073620,-150.0,0.0004132,2]
[312411963,1705863073630,-292.03,0.0004132,2]
[312411964,1705863073639,-150.0,0.0004132,2]
[312411965,1705863073649,-294.51,0.0004132,2]
[312411966,1705863073659,-150.0,0.0004132,2]
[312411967,1705863073671,-408.81,0.0004132,2]
[312411968,1705863073680,-150.0,0.0004132,2]
[312411969,1705863073690,-150.0,0.0004132,2]
[312411970,1705863073699,-418.68,0.0004132,2]
[312411971,1705863073709,-418.68,0.0004132,2]
[312411972,1705863073718,-292.03,0.0004132,2]
[312411973,1705863073728,-150.0,0.0004132,2]
[312411974,1705863073737,-408.81,0.0004132,2]
[312411975,1705863073749,-150.0,0.0004132,2]
[312411976,1705863073759,-150.0,0.0004132,2]
[312411977,1705863073768,-294.51,0.0004132,2]
[312411978,1705863073777,-418.68,0.0004132,2]
[312411979,1705863073787,-408.81,0.0004132,2]
[312411980,1705863073796,-300.0,0.0004132,2]
[312411981,1705863073806,-150.0,0.0004132,2]
[312411982,1705863073816,-294.51,0.0004132,2]
[312411983,1705863073825,-302.59,0.0004132,2]
[312411984,1705863073835,-150.0,0.0004132,2]
[312411985,1705863073844,-150.0,0.0004132,2]
[312411986,1705863073854,-150.0,0.0004132,2]
[312411987,1705863073863,-406.09,0.0004132,2]
[312411988,1705863073873,-150.0,0.0004132,2]
[312411989,1705863073883,-559.92,0.0004132,2]
[312411990,1705863073893,-294.51,0.0004132,2]
[312411991,1705863073902,-150.0,0.0004132,2]
[312411992,1705863073912,-150.0,0.0004132,2]
[312411993,1705863073921,-150.0,0.0004132,2]
[312411994,1705863073931,-418.5,0.0004132,2]
[312411995,1705863073941,-408.81,0.0004132,2]
[312411996,1705863073951,-150.0,0.0004132,2]
[312411997,1705863073960,-294.51,0.0004132,2]
[312411998,1705863073970,-150.0,0.0004132,2]
[312411999,1705863073979,-418.68,0.0004132,2]
[312412000,1705863073988,-408.81,0.0004132,2]
[312412001,1705863073998,-294.51,0.0004132,2]
[312412002,1705863074007,-150.0,0.0004132,2]
[312412003,1705863074017,-294.51,0.0004132,2]
[312412004,1705863074027,-418.68,0.0004132,2]
[312412005,1705863074048,-408.81,0.0004132,2]
[312412006,1705863074058,-150.0,0.0004132,2]
[312412007,1705863074068,-150.0,0.0004132,2]
[312412008,1705863074078,-418.68,0.0004132,2]
[312412009,1705863074087,-294.51,0.0004132,2]
[312412010,1705863074097,-408.81,0.0004132,2]
[312412011,1705863074258,-150.0,0.0004132,2]
[312412012,1705863074268,-150.0,0.0004132,2]
[312412013,1705863074278,-150.0,0.0004132,2]
[312412014,1705863074287,-408.81,0.0004132,2]
[312412015,1705863074297,-417.96,0.0004132,2]
[312412016,1705863074306,-150.0,0.0004132,2]
[312412017,1705863074316,-150.0,0.0004132,2]
[312412018,1705863074326,-294.51,0.0004132,2]
[312412019,1705863074335,-408.81,0.0004132,2]
[312412020,1705863074345,-150.0,0.0004132,2]
[312412021,1705863074354,-164.5,0.0004132,2]
[312412022,1705863074363,-294.51,0.0004132,2]
[312412023,1705863074373,-408.81,0.0004132,2]
[312412024,1705863074383,-294.51,0.0004132,2]
[312412025,1705863074392,-150.0,0.0004132,2]
[312412026,1705863074402,-294.51,0.0004132,2]
[312412027,1705863074411,-343.49,0.0004132,2]
[312412028,1705863074420,-150.0,0.0004132,2]
[312412029,1705863074430,-799.55,0.0004132,2]
[312412030,1705863074439,-294.51,0.0004132,2]
[312412031,1705863074449,-382.67,0.0004132,2]
[312412032,1705863074458,-294.39,0.0004132,2]
[312412033,1705863074467,-294.51,0.0004132,2]
[312412034,1705863074476,-294.51,0.0004132,2]
[312412035,1705863074485,-294.51,0.0004132,2]
[312412036,1705863074494,-294.03,0.0004132,2]
[312412037,1705863074503,-309.550141,0.00041344,30]
[312412038,1705863074512,-628.711297,0.00041344,30]
[312412039,1705863074521,-166.160173,0.00041344,30]
[312412040,1705863074531,-309.550142,0.00041344,30]
[312412041,1705863074540,-628.711297,0.00041344,30]
[312412042,1705863074550,-646.52336,0.00041344,30]
[312412043,1705863074559,-928.650423,0.00041344,30]
[312412044,1705863074568,-1886.133893,0.00041344,30]
[312412045,1705863074577,-203.489608,0.00041344,30]
[312412046,1705863074587,-157.24176502,0.0004135,30]
[312412047,1705863074596,-953.43125265,0.0004135,30]
[312412048,1705863074606,-953.43125265,0.00041357,30]
[312412049,1705863074615,-1000.0,0.0004137,120]
[312412050,1705863074625,-150.0,0.0004137,2]
[312412051,1705863074634,-150.0,0.0004137,2]
[312412052,1705863074646,-150.0,0.0004137,2]
[312412053,1705863074656,-150.0,0.0004137,2]
[312412054,1705863074666,-150.0,0.0004137,2]
[312412055,1705863074675,-166.22,0.0004137,2]
[312412056,1705863074684,-150.0,0.0004137,2]
[312412057,1705863074695,-150.0,0.0004137,2]
[312412058,1705863074704,-150.0,0.0004137,2]
[312412059,1705863074713,-150.0,0.0004137,2]
[312412060,1705863074723,-153.06381515,0.00041388,30]
[312412061,1705863074733,-158.0,0.00041392,2]
[312412062,1705863074743,-153.06381515,0.00041448,30]
[312412063,1705863074754,-5000.0,0.00041488,6]
[312412064,1705863074763,-152.14113685,0.0004151,30]
[312412065,1705863074772,-214.0,0.00041519,2]
[312412066,1705863074781,-426.0,0.00041519,2]
[312412067,1705863074791,-997.0,0.00041519,2]
[312412068,1705863074801,-235.0,0.00041519,2]
[312412069,1705863074810,-229.60394686,0.00041522,4]
[312412070,1705863074820,-528.84797409,0.00041543,15]
[312412071,1705863074829,-187.22707784,0.00041543,10]
[312412072,1705863074839,-1000.0,0.00041558,15]
[312412073,1705863074849,-1000.0,0.00041558,15]
[312412074,1705863074858,-1000.0,0.00041558,15]
[312412075,1705863074868,-1000.0,0.00041558,15]
[312412076,1705863074877,-2741.0,0.0004159,3]
[312412077,1705863074887,-151.13019096,0.00041606,30]
[312412078,1705863074896,-85168.8810132,0.00041615,2]
[312412079,1705863074905,-90258.0968385,0.00041615,2]
[312412080,1705863074914,-500.0,0.00041643,30]
[312412081,1705863074923,-509.20114236,0.00041643,31]
[312412082,1705863074933,-500.0,0.00041643,31]
[312412083,1705863074942,-500.0,0.00041643,5]
[312412084,1705863074951,-555.52,0.00041643,31]
[312412085,1705863074962,-521.43606454,0.00041643,31]
[312412086,1705863074972,-500.0,0.00041643,31]
[312412087,1705863074981,-500.0,0.00041643,31]
[312412088,1705863074990,-500.0,0.00041643,7]
[312412089,1705863074999,-664.7,0.00041643,2]
[312412090,1705863075008,-503.87,0.00041643,31]
[312412091,1705863075017,-552.56,0.00041643,31]
[312412092,1705863075026,-500.0,0.00041643,31]
[312412093,1705863075037,-500.0,0.00041643,31]
[312412094,1705863075046,-548.42,0.00041643,31]
[312412095,1705863075055,-500.0,0.00041643,31]
[312412096,1705863075064,-500.0,0.00041643,31]
[312412097,1705863075074,-500.0,0.00041643,31]
[312412098,1705863075084,-500.0,0.00041643,31]
[312412099,1705863075094,-344.24480556,0.00041643,31]
[312412100,1705863075103,-475.32986411,0.00041643,31]
[312412101,1705863075113,-585.71469685,0.00041643,31]
[312412102,1705863075123,-500.0,0.00041643,31]
[312412103,1705863075133,-545.31,0.00041643,31]
[312412104,1705863075142,-500.0,0.00041643,31]
[312412105,1705863075152,-500.0,0.00041643,31]
[312412106,1705863075161,-609.33,0.00041643,31]
[312412107,1705863075171,-500.0,0.00041643,31]
[312412108,1705863075180,-500.0,0.00041643,31]
[312412109,1705863075190,-500.0,0.00041643,31]
[312412110,1705863075199,-534.84,0.00041643,31]
[312412111,1705863075209,-519.74256693,0.00041643,31]
[312412112,1705863075218,-506.69176694,0.00041643,31]
[312412113,1705863075227,-500.0,0.00041643,31]
[312412114,1705863075238,-983.24,0.00041643,31]
[312412115,1705863075247,-500.0,0.00041643,31]
[312412116,1705863075257,-422.82167549,0.00041643,31]
[312412117,1705863075267,-500.0,0.00041643,31]
[312412118,1705863075276,-500.0,0.00041643,31]
[312412119,1705863075286,-500.0,0.00041643,31]
[312412120,1705863075296,-540.33,0.00041643,31]
[312412121,1705863075305,-500.0,0.00041643,31]
[312412122,1705863075315,-407.95239765,0.00041643,31]
[312412123,1705863075324,-630.18569457,0.00041643,31]
[312412124,1705863075333,-622.72,0.00041643,31]
[312412125,1705863075342,-504.80769132,0.00041643,31]
[312412126,1705863075351,-500.0,0.00041643,31]
[312412127,1705863075361,-500.0,0.00041643,31]
[312412128,1705863075370,-500.0,0.00041643,31]
[312412129,1705863075379,-500.0,0.00041643,31]
[312412130,1705863075388,-500.0,0.00041643,31]
[312412131,1705863075398,-500.0,0.00041643,31]
[312412132,1705863075406,-500.0,0.00041643,31]
[312412133,1705863075416,-335.55603741,0.00041643,31]
[312412134,1705863075426,-553.34,0.00041643,31]
[312412135,1705863075435,-500.0,0.00041643,31]
[312412136,1705863075444,-247.08991716,0.00041643,31]
[312412137,1705863075456,-500.0,0.00041643,31]
[312412138,1705863075465,-500.0,0.00041643,31]
[312412139,1705863075474,-500.0,0.00041643,31]
[312412140,1705863075491,-547.07,0.00041643,31]
[312412141,1705863075500,-500.0,0.00041643,31]
[312412142,1705863075512,-545.16425754,0.00041643,31]
[312412143,1705863075529,-540.68,0.00041643,31]
[312412144,1705863075540,-500.0,0.00041643,31]
[312412145,1705863075563,-500.0,0.00041643,31]
[312412146,1705863075574,-620.8572247,0.00041643,31]
[312412147,1705863075591,-500.0,0.00041643,31]
[312412148,1705863075601,-500.0,0.00041643,31]
[312412149,1705863075623,-662.98,0.00041643,20]
[312412150,1705863075633,-500.0,0.00041643,31]
[312412151,1705863075645,-230.77855484,0.00041643,31]
[312412152,1705863075654,-500.0,0.00041643,31]
[312412153,1705863075664,-500.0,0.00041643,31]
[312412154,1705863075688,-321.74446394,0.00041643,31]
[312412155,1705863075697,-500.0,0.00041643,31]
[312412156,1705863075722,-500.0,0.00041643,31]
[312412157,1705863075731,-1000.0,0.00041643,2]
[312412158,1705863075740,-500.0,0.00041643,31]
[312412159,1705863075749,-525.50374667,0.00041643,31]
[312412160,1705863075759,-514.00349939,0.00041643,31]
[312412161,1705863075768,-500.0,0.00041643,31]
[312412162,1705863075778,-679.87,0.00041643,31]
[312412163,1705863075788,-500.0,0.00041643,31]
[312412164,1705863075797,-500.0,0.00041643,31]
[312412165,1705863075806,-500.0,0.00041643,31]
[312412166,1705863075816,-500.0,0.00041643,31]
[312412167,1705863075826,-175.19764781,0.00041643,30]
[312412168,1705863075837,-500.0,0.00041643,31]
[312412169,1705863075846,-500.0,0.00041643,31]
[312412170,1705863075856,-801.92,0.00041643,31]
[312412171,1705863075865,-500.0,0.00041643,31]
[312412172,1705863075875,-500.0,0.00041643,31]
[312412173,1705863075884,-500.0,0.00041643,31]
[312412174,1705863075894,-556.67,0.00041643,31]
[312412175,1705863075903,-500.0,0.00041643,31]
[312412176,1705863075913,-500.0,0.00041643,31]
[312412177,1705863075923,-500.0,0.00041643,31]
[312412178,1705863075932,-500.0,0.00041643,31]
[312412179,1705863075942,-500.0,0.00041643,31]
[312412180,1705863075951,-500.0,0.00041643,31]
[312412181,1705863075960,-171.52664094,0.00041643,31]
[312412182,1705863075970,-500.30006965,0.00041643,31]
[312412183,1705863075979,-500.0,0.00041643,31]
[312412184,1705863075988,-516.91757285,0.00041643,31]
[312412185,1705863075998,-500.0,0.00041643,31]
[312412186,1705863076007,-628.07,0.00041643,31]
[312412187,1705863076017,-500.0,0.00041643,31]
[312412188,1705863076026,-500.0,0.00041643,31]
[312412189,1705863076036,-500.0,0.00041643,31]
[312412190,1705863076046,-500.0,0.00041643,31]
[312412191,1705863076055,-500.0,0.00041643,31]
[312412192,1705863076064,-500.0,0.00041643,31]
[312412193,1705863076074,-663.06,0.00041643,31]
[312412194,1705863076083,-500.0,0.00041643,31]
[312412195,1705863076092,-500.0,0.00041643,31]
[312412196,1705863076102,-500.0,0.00041643,31]
[312412197,1705863076111,-500.0,0.00041643,31]
[312412198,1705863076121,-500.0,0.00041643,31]
[312412199,1705863076131,-500.0,0.00041643,31]
[312412200,1705863076141,-500.0,0.00041643,31]
[312412201,1705863076150,-510.97749034,0.00041643,31]
[312412202,1705863076159,-500.0,0.00041643,31]
[312412203,1705863076168,-562.47,0.00041643,31]
[312412204,1705863076178,-500.0,0.00041643,31]
[312412205,1705863076187,-528.33373501,0.00041643,31]
[312412206,1705863076197,-500.0,0.00041643,31]
[312412207,1705863076206,-500.0,0.00041643,31]
[312412208,1705863076215,-875.16,0.00041643,31]
[312412209,1705863076225,-1000.0,0.00041643,2]
[312412210,1705863076235,-500.0,0.00041643,31]
[312412211,1705863076245,-500.0,0.00041643,31]
[312412212,1705863076255,-500.0,0.00041643,31]
[312412213,1705863076265,-500.0,0.00041643,31]
[312412214,1705863076274,-500.0,0.00041643,31]
[312412215,1705863076283,-510.34669262,0.00041643,31]
[312412216,1705863076293,-1217.3,0.00041643,31]
[312412217,1705863076303,-500.0,0.00041643,31]
[312412218,1705863076313,-859.18,0.00041643,31]
[312412219,1705863076322,-500.0,0.00041643,31]
[312412220,1705863076333,-522.20669367,0.00041643,31]
[312412221,1705863076343,-574.98,0.00041643,31]
[312412222,1705863076352,-504.52940618,0.00041643,31]
[312412223,1705863076361,-500.0,0.00041643,31]
[312412224,1705863076371,-500.0,0.00041643,31]
[312412225,1705863076379,-500.0,0.00041643,31]
[312412226,1705863076388,-1000.0,0.00041643,60]
[312412227,1705863076398,-500.0,0.00041643,31]
[312412228,1705863076407,-547.06,0.00041643,31]
[312412229,1705863076417,-500.0,0.00041643,31]
[312412230,1705863076427,-1017.54,0.00041643,2]
[312412231,1705863076436,-500.0,0.00041643,31]
[312412232,1705863076445,-452.52719288,0.00041643,31]
[312412233,1705863076455,-500.0,0.00041643,31]
[312412234,1705863076464,-952.82,0.00041643,31]
[312412235,1705863076474,-500.0,0.00041643,31]
[312412236,1705863076483,-515.12705439,0.00041643,31]
[312412237,1705863076493,-500.0,0.00041643,31]
[312412238,1705863076502,-1019.1,0.00041643,31]
[312412239,1705863076511,-500.0,0.00041643,31]
[312412240,1705863076520,-590.85,0.00041643,31]
[312412241,1705863076529,-670.02,0.00041643,31]
[312412242,1705863076539,-509.17249319,0.00041643,31]
[312412243,1705863076548,-500.0,0.00041643,31]
[312412244,1705863076558,-262.88091715,0.00041643,31]
[312412245,1705863076567,-899.25,0.00041643,31]
[312412246,1705863076576,-500.0,0.00041643,31]
[312412247,1705863076585,-851.14,0.00041643,31]
[312412248,1705863076594,-500.0,0.00041643,31]
[312412249,1705863076603,-500.0,0.00041643,31]
[312412250,1705863076613,-500.0,0.00041643,31]
[312412251,1705863076622,-500.0,0.00041643,31]
[312412252,1705863076631,-500.0,0.00041643,31]
[312412253,1705863076641,-1000.0,0.00041643,31]
[312412254,1705863076654,-901.99,0.00041643,31]
[312412255,1705863076664,-500.0,0.00041643,31]
[312412256,1705863076674,-646.33,0.00041643,31]
[312412257,1705863076687,-500.0,0.00041643,31]
[312412258,1705863076696,-500.0,0.00041643,31]
[312412259,1705863076705,-500.0,0.00041643,31]
[312412260,1705863076720,-509.5685493,0.00041643,31]
[312412261,1705863076730,-500.0,0.00041643,31]
[312412262,1705863076741,-1051.97,0.00041643,31]
[312412263,1705863076760,-779.96,0.00041643,31]
[312412264,1705863076770,-1736.1,0.00041643,31]
[312412265,1705863076780,-500.0,0.00041643,31]
[312412266,1705863076789,-500.0,0.00041643,31]
[312412267,1705863076799,-310.68934937,0.00041643,31]
[312412268,1705863076808,-500.0,0.00041643,31]
[312412269,1705863076824,-500.0,0.00041643,31]
[312412270,1705863076837,-500.0,0.00041643,31]
[312412271,1705863076855,-758.95,0.00041643,31]
[312412272,1705863076874,-552.16,0.00041643,31]
[312412273,1705863076888,-832.67,0.00041643,31]
[312412274,1705863076904,-500.0,0.00041643,31]
[312412275,1705863076921,-828.98,0.00041643,31]
[312412276,1705863076933,-500.0,0.00041643,31]
[312412277,1705863076945,-500.0,0.00041643,31]
[312412278,1705863076956,-885.24,0.00041643,2]
[312412279,1705863076969,-500.0,0.00041643,31]
[312412280,1705863076978,-500.0,0.00041643,31]
[312412281,1705863076988,-1089.54,0.00041643,31]
[312412282,1705863077020,-500.0,0.00041643,31]
[312412283,1705863077031,-500.0,0.00041643,31]
[312412284,1705863077043,-500.0,0.00041643,31]
[312412285,1705863077052,-1094.52,0.00041643,31]
[312412286,1705863077062,-500.0,0.00041643,2]
[312412287,1705863077072,-500.0,0.00041643,31]
[312412288,1705863077082,-994.47,0.00041643,31]
[312412289,1705863077092,-500.0,0.00041643,31]
[312412290,1705863077102,-1710.22,0.00041643,31]
[312412291,1705863077112,-500.0,0.00041643,31]
[312412292,1705863077123,-500.0,0.00041643,31]
[312412293,1705863077134,-1261.22,0.00041643,31]
[312412294,1705863077144,-500.0,0.00041643,31]
[312412295,1705863077153,-854.62,0.00041643,31]
[312412296,1705863077168,-695.88,0.00041643,31]
[312412297,1705863077193,-1142.33,0.00041643,31]
[312412298,1705863077204,-500.0,0.00041643,31]
[312412299,1705863077214,-500.0,0.00041643,31]
[312412300,1705863077224,-500.0,0.00041643,31]
[312412301,1705863077235,-852.67,0.00041643,31]
[312412302,1705863077250,-500.0,0.00041643,31]
[312412303,1705863077260,-500.0,0.00041643,31]
[312412304,1705863077270,-848.47,0.00041643,31]
[312412305,1705863077279,-500.0,0.00041643,31]
[312412306,1705863077289,-500.0,0.00041643,31]
[312412307,1705863077298,-764.06,0.00041643,31]
[312412308,1705863077308,-500.0,0.00041643,31]
[312412309,1705863077318,-500.0,0.00041643,31]
[312412310,1705863077327,-1037.5,0.00041643,31]
[312412311,1705863077338,-1061.05,0.00041643,31]
[312412312,1705863077348,-289.98508365,0.00041643,31]
[312412313,1705863077358,-500.0,0.00041643,31]
[312412314,1705863077367,-500.0,0.00041643,31]
[312412315,1705863077377,-1032.07,0.00041643,31]
[312412316,1705863077387,-500.0,0.00041643,31]
[312412317,1705863077397,-539.06,0.00041643,20]
[312412318,1705863077407,-1080.19,0.00041643,31]
[312412319,1705863077416,-500.0,0.00041643,31]
[312412320,1705863077425,-500.0,0.00041643,31]
[312412321,1705863077435,-584.66,0.00041643,31]
[312412322,1705863077444,-508.46,0.00041643,31]
[312412323,1705863077454,-810.58,0.00041643,31]
[312412324,1705863077464,-504.22,0.00041643,31]
[312412325,1705863077473,-500.0,0.00041643,31]
[312412326,1705863077482,-517.96,0.00041643,31]
[312412327,1705863077491,-1628.19,0.00041643,31]
[312412328,1705863077500,-500.0,0.00041643,31]
[312412329,1705863077509,-500.0,0.00041643,31]
[312412330,1705863077518,-500.0,0.00041643,31]
[312412331,1705863077528,-841.37,0.00041643,31]
[312412332,1705863077537,-500.0,0.00041643,31]
[312412333,1705863077547,-500.0,0.00041643,31]
[312412334,1705863077556,-1031.39,0.00041643,31]
[312412335,1705863077565,-656.35,0.00041643,31]
[312412336,1705863077575,-1204.6,0.00041643,31]
[312412337,1705863077585,-885.84,0.00041643,31]
[312412338,1705863077594,-293.2849584,0.00041643,31]
[312412339,1705863077603,-500.0,0.00041643,31]
[312412340,1705863077613,-500.0,0.00041643,31]
[312412341,1705863077622,-500.0,0.00041643,31]
[312412342,1705863077632,-743.47,0.00041643,31]
[312412343,1705863077640,-644.93200608,0.00041643,31]
[312412344,1705863077650,-500.0,0.00041643,31]
[312412345,1705863077659,-1625.28,0.00041643,31]
[312412346,1705863077673,-1173.34,0.00041643,31]
[312412347,1705863077683,-651.6,0.00041643,31]
[312412348,1705863077693,-500.0,0.00041643,31]
[312412349,1705863077708,-512.48596135,0.00041643,31]
[312412350,1705863077755,-1176.24,0.00041643,31]
[312412351,1705863077765,-500.0,0.00041643,31]
[312412352,1705863077775,-500.0,0.00041643,31]
[312412353,1705863077785,-653.83,0.00041643,31]
[312412354,1705863077795,-500.0,0.00041643,31]
[312412355,1705863077805,-580.99,0.00041643,31]
[312412356,1705863077814,-500.0,0.00041643,31]
[312412357,1705863077823,-500.0,0.00041643,31]
[312412358,1705863077833,-500.0,0.00041643,31]
[312412359,1705863077842,-500.0,0.00041643,31]
[312412360,1705863077851,-500.0,0.00041643,31]
[312412361,1705863077861,-703.23,0.00041643,31]
[312412362,1705863077870,-500.0,0.00041643,31]
[312412363,1705863077879,-979.3,0.00041643,31]
[312412364,1705863077889,-1290.61,0.00041643,31]
[312412365,1705863077899,-500.0,0.00041643,31]
[312412366,1705863077908,-500.0,0.00041643,31]
[312412367,1705863077917,-2291.12,0.00041643,31]
[312412368,1705863077927,-500.0,0.00041643,31]
[312412369,1705863077936,-1150.77,0.00041643,31]
[312412370,1705863077946,-1186.31,0.00041643,31]
[312412371,1705863077955,-500.0,0.00041643,31]
[312412372,1705863077964,-755.53,0.00041643,31]
[312412373,1705863077974,-600.73,0.00041643,31]
[312412374,1705863077983,-500.0,0.00041643,30]
[312412375,1705863077992,-500.0,0.00041643,31]
[312412376,1705863078002,-570.33,0.00041643,31]
[312412377,1705863078011,-530.31,0.00041643,31]
[312412378,1705863078020,-1218.15,0.00041643,31]
[312412379,1705863078030,-500.0,0.00041643,31]
[312412380,1705863078039,-719.86,0.00041643,31]
[312412381,1705863078049,-500.0,0.00041643,31]
[312412382,1705863078058,-500.0,0.00041643,31]
[312412383,1705863078068,-500.0,0.00041643,31]
[312412384,1705863078078,-500.0,0.00041643,31]
[312412385,1705863078088,-1419.05,0.00041643,31]
[312412386,1705863078098,-1073.76,0.00041643,31]
[312412387,1705863078107,-989.05,0.00041643,31]
[312412388,1705863078117,-500.0,0.00041643,31]
[312412389,1705863078127,-1620.1,0.00041643,31]
[312412390,1705863078136,-500.0,0.00041643,31]
[312412391,1705863078146,-953.57,0.00041643,31]
[312412392,1705863078156,-503.72,0.00041643,31]
[312412393,1705863078167,-686.64,0.00041643,31]
[312412394,1705863078178,-1577.99,0.00041643,31]
[312412395,1705863078188,-741.63,0.00041643,31]
[312412396,1705863078198,-500.0,0.00041643,31]
[312412397,1705863078208,-10000.0,0.00041643,31]
[312412398,1705863078218,-657.61,0.00041643,31]
[312412399,1705863078229,-500.0,0.00041643,31]
[312412400,1705863078239,-500.0,0.00041643,31]
[312412401,1705863078248,-500.0,0.00041643,31]
[312412402,1705863078258,-500.0,0.00041643,31]
[312412403,1705863078269,-504.7,0.00041643,31]
[312412404,1705863078279,-500.0,0.00041643,31]
[312412405,1705863078289,-750.34,0.00041643,31]
[312412406,1705863078299,-500.0,0.00041643,31]
[312412407,1705863078309,-500.0,0.00041643,31]
[312412408,1705863078319,-1162.05,0.00041643,31]
[312412409,1705863078329,-848.05,0.00041643,31]
[312412410,1705863078338,-1048.21,0.00041643,31]
[312412411,1705863078348,-10000.0,0.00041643,31]
[312412412,1705863078358,-500.0,0.00041643,31]
[312412413,1705863078367,-500.0,0.00041643,31]
[312412414,1705863078377,-645.26,0.00041643,31]
[312412415,1705863078386,-730.17,0.00041643,31]
[312412416,1705863078395,-888.07,0.00041643,31]
[312412417,1705863078405,-1029.09,0.00041643,31]
[312412418,1705863078415,-500.0,0.00041643,2]
[312412419,1705863078425,-561.84,0.00041643,31]
[312412420,1705863078436,-500.0,0.00041643,31]
[312412421,1705863078446,-500.0,0.00041643,31]
[312412422,1705863078456,-500.0,0.00041643,31]
[312412423,1705863078465,-776.61,0.00041643,31]
[312412424,1705863078475,-500.0,0.00041643,31]
[312412425,1705863078485,-500.0,0.00041643,31]
[312412426,1705863078495,-579.77,0.00041643,31]
[312412427,1705863078505,-1041.57,0.00041643,31]
[312412428,1705863078515,-730.27,0.00041643,31]
[312412429,1705863078524,-780.43,0.00041643,31]
[312412430,1705863078534,-745.98,0.00041643,31]
[312412431,1705863078543,-1220.97,0.00041643,31]
[312412432,1705863078553,-938.59,0.00041643,31]
[312412433,1705863078563,-3118.19,0.00041643,31]
[312412434,1705863078573,-1952.53,0.00041643,31]
[312412435,1705863078583,-500.0,0.00041643,31]
[312412436,1705863078594,-1298.67,0.00041643,31]
[312412437,1705863078603,-500.0,0.00041643,31]
[312412438,1705863078613,-935.41,0.00041643,31]
[312412439,1705863078624,-500.0,0.00041643,31]